[Event "MCC Labor Day Schev 2024"]
[Site "New York"]
[Date "2024.08.30"]
[Round "2.1"]
[White "Podavonov, Alisher"]
[Black "Sloan, Jed"]
[Result "1/2-1/2"]
[ECO "E20"]
[WhiteElo "2140"]
[BlackElo "2039"]
[Annotator "RC"]
[PlyCount "105"]
[EventDate "2024.08.28"]
[EventType "schev"]
[EventCountry "USA"]
[SourceTitle "playchess.com"]
[Source "ChessBase"]
[SourceQuality "1"]
[TimeControl "5400+30"]

1. d4 {[%emt 0:04:40]} Nf6 {[%emt 0:00:07]} 2. c4 {[%emt 0:00:08]} e6 {[%emt 0:00:04]} 3. g3 {[%emt 0:00:07]} d5 {[%emt 0:00:08]} 4. Nf3 {[%emt 0:00:04]} Bb4+ {[%emt 0:00:07]} 5. Nc3 {[%emt 0:01:07]} dxc4 {[%emt 0:02:57]} 6. Qa4+ {[%emt 0:03:36]} Nc6 {[%emt 0:00:44]} 7. a3 {[%emt 0:00:34]} Bxc3+ {[%emt 0:03:16]} 8. bxc3 {[%emt 0:00:02]} Qd5 {[%emt 0:05:46]} 9. Bg2 {[%emt 0:00:35]} b5 {[%emt 0:03:33]} 10. Qc2 {[%emt 0:00:09]} Bb7 {[%emt 0:02:29]} 11. a4 {[%emt 0:12:04]} b4 {[%emt 0:12:30]} 12. O-O {[%emt 0:14:25]} b3 {[%emt 0:04:22]} 13. Qb1 {[%emt 0:00:15]} Na5 {[%emt 0:04:25]} 14. Ba3 {[%emt 0:08:18]} Ne4 {[%emt 0:14:52]} 15. Qb2 {[%emt 0:08:01]} Nd6 {[%emt 0:06:38]} 16. Rae1 {[%emt 0:12:10]} O-O {[%emt 0:02:52]} 17. e4 {[%emt 0:03:51]} Qh5 {[%emt 0:01:22]} 18. Nd2 {[%emt 0:00:37]} Rfe8 {[%emt 0:04:04]} 19. Bf3 {[%emt 0:05:18]} Qg6 {[%emt 0:08:44]} 20. Bb4 {[%emt 0:00:24]} Nc6 {[%emt 0:01:14]} 21. Bxd6 {[%emt 0:00:19]} cxd6 {[%emt 0:00:47]} 22. Nxc4 {[%emt 0:00:18]} Ba6 {[%emt 0:02:19]} 23. Nxd6 {[%emt 0:01:24]} Bxf1 {[%emt 0:02:51]} 24. Nxe8 {[%emt 0:00:22]} Rxe8 {[%emt 0:00:14]} 25. Kxf1 {[%emt 0:01:01]} Na5 {[%emt 0:00:46]} 26. Qe2 {[%emt 0:03:38]} Qg5 {[%emt 0:03:15]} 27. e5 {[%emt 0:09:14]} Rb8 {[%emt 0:01:39]} 28. Rb1 {[%emt 0:01:51]} Qe7 {[%emt 0:01:44]} 29. d5 {[%emt 0:03:19]} Qc5 {[%emt 0:03:31]} 30. dxe6 {[%emt 0:00:58]} fxe6 {[%emt 0:00:41]} 31. Bg4 {[%emt 0:00:32]} Qc6 {[%emt 0:01:05]} 32. Kg1 {[%emt 0:02:24]} Nc4 {[%emt 0:00:33]} 33. Bh3 {[%emt 0:02:43]} b2 {[%emt 0:01:07]} 34. Bf1 {[%emt 0:00:21]} Nb6 {[%emt 0:03:58]} 35. Rxb2 {[%emt 0:00:09]} Qxa4 {[%emt 0:01:15]} 36. Ra2 {[%emt 0:01:26]} Qd7 {[%emt 0:00:27]} 37. Rd2 {[%emt 0:00:33]} Qf7 {[%emt 0:00:54]} 38. Rd6 {[%emt 0:00:27]} Qf5 {[%emt 0:00:17]} 39. Qb5 {[%emt 0:00:45]} Rf8 {[%emt 0:01:08]} 40. Qc5 {[%emt 0:00:44]} Na4 {[%emt 0:00:46]} 41. Qxa7 {[%emt 0:00:21]} Nxc3 {[%emt 0:00:14]} 42. Rd7 {[%emt 0:00:51]} Qg6 {[%emt 0:01:04]} 43. Bd3 {[%emt 0:00:31]} Qg4 {[%emt 0:00:17]} 44. Qa1 {[%emt 0:01:05]} Ne2+ {[%emt 0:00:50]} 45. Kf1 {[%emt 0:00:46]} Qf3 {[%emt 0:00:28]} 46. Qe1 {[%emt 0:00:20]} Ra8 {[%emt 0:00:24]} 47. Rc7 {[%emt 0:00:39]} Ra1 {[%emt 0:00:31]} 48. Qxa1 {[%emt 0:00:26]} Nxg3+ {[%emt 0:00:21]} 49. hxg3 {[%emt 0:00:29]} Qh1+ {[%emt 0:00:01]} 50. Ke2 {[%emt 0:00:01]} Qxa1 {[%emt 0:00:08]} 51. f4 {[%emt 0:00:45]} Qa8 {[%emt 0:00:41]} 52. Ke3 {[%emt 0:00:43]} Qd8 {[%emt 0:00:41]} 53. Rc6 {[%emt 0:01:10]} 1/2-1/2

[Event "MCC Labor Day Schev 2024"]
[Site "New York"]
[Date "2024.08.30"]
[Round "2.2"]
[White "Gaw, Chloe"]
[Black "Rohde, Michael"]
[Result "1/2-1/2"]
[ECO "E49"]
[WhiteElo "1981"]
[BlackElo "2280"]
[Annotator "RC"]
[PlyCount "46"]
[EventDate "2024.08.28"]
[EventType "schev"]
[EventCountry "USA"]
[SourceTitle "playchess.com"]
[Source "ChessBase"]
[SourceQuality "1"]
[TimeControl "5400+30"]

1. d4 Nf6 2. c4 e6 3. Nc3 Bb4 4. e3 O-O 5. Bd3 d5 6. a3 Bxc3+ 7. bxc3 b6 8. cxd5 exd5 9. Ne2 c5 10. O-O Ba6 11. f3 Bxd3 12. Qxd3 Re8 13. Ng3 Nbd7 14. Bb2 Rc8 15. Rad1 Qc7 16. Qe2 cxd4 17. cxd4 Qc2 18. Rd2 Qg6 19. Qf2 b5 20. Re2 Nb6 21. e4 Na4 22. Bc1 h6 23. Rfe1 Nh5 1/2-1/2

[Event "MCC Labor Day Schev 2024"]
[Site "New York"]
[Date "2024.08.30"]
[Round "2.3"]
[White "Almeida Saenz, Alfonso"]
[Black "Aravindakshan, Sahana"]
[Result "1/2-1/2"]
[ECO "D00"]
[WhiteElo "2202"]
[BlackElo "2003"]
[Annotator "RC"]
[PlyCount "71"]
[EventDate "2024.08.28"]
[EventType "schev"]
[EventCountry "USA"]
[SourceTitle "playchess.com"]
[Source "ChessBase"]
[SourceQuality "1"]
[TimeControl "5400+30"]

1. d4 {[%emt 0:10:21]} Nf6 {[%emt 0:00:03]} 2. Nf3 {[%emt 0:00:15]} g6 {[%emt 0:00:08]} 3. Nc3 {[%emt 0:00:52]} d5 {[%emt 0:00:41]} 4. Bf4 {[%emt 0:00:09]} Bg7 {[%emt 0:00:59]} 5. e3 {[%emt 0:01:55]} c6 {[%emt 0:07:41]} 6. h3 {[%emt 0:00:12]} O-O {[%emt 0:00:55]} 7. Be2 {[%emt 0:00:37]} c5 {[%emt 0:02:02]} 8. O-O {[%emt 0:00:25]} cxd4 {[%emt 0:02:53]} 9. exd4 {[%emt 0:00:08]} Nc6 {[%emt 0:00:27]} 10. a3 {[%emt 0:02:06]} Ne4 {[%emt 0:13:03]} 11. Bd3 {[%emt 0:00:36]} Nxd4 {[%emt 0:24:07]} 12. Nxe4 {[%emt 0:00:12]} Nxf3+ {[%emt 0:04:38]} 13. Qxf3 {[%emt 0:00:10]} dxe4 {[%emt 0:00:05]} 14. Bxe4 {[%emt 0:00:06]} Bxb2 {[%emt 0:05:29]} 15. Rab1 {[%emt 0:00:11]} Bg7 {[%emt 0:00:56]} 16. Rfd1 {[%emt 0:01:00]} Qa5 {[%emt 0:04:29]} 17. Bxb7 {[%emt 0:01:14]} Bxb7 {[%emt 0:00:11]} 18. Rxb7 {[%emt 0:00:02]} Bf6 {[%emt 0:14:07]} 19. Bd2 {[%emt 0:01:47]} Qc5 {[%emt 0:02:18]} 20. Bb4 {[%emt 0:00:17]} Qxc2 {[%emt 0:01:59]} 21. Bxe7 {[%emt 0:00:07]} Bxe7 {[%emt 0:00:05]} 22. Rxe7 {[%emt 0:00:06]} Qc4 {[%emt 0:06:52]} 23. Rdd7 {[%emt 0:01:29]} a6 {[%emt 0:06:02]} 24. Rc7 {[%emt 0:01:12]} Qa2 {[%emt 0:01:07]} 25. Re2 {[%emt 0:07:06]} Qb1+ {[%emt 0:00:43]} 26. Kh2 {[%emt 0:00:10]} Qb8 {[%emt 0:00:29]} 27. Qg3 {[%emt 0:01:06]} Ra7 {[%emt 0:00:30]} 28. Rc6 {[%emt 0:00:23]} Qxg3+ {[%emt 0:00:30]} 29. Kxg3 {[%emt 0:00:07]} Rb8 {[%emt 0:00:54]} 30. Re3 {[%emt 0:00:01]} a5 {[%emt 0:00:27]} 31. h4 {[%emt 0:00:08]} Kg7 {[%emt 0:00:29]} 32. Rc5 {[%emt 0:00:11]} a4 {[%emt 0:00:26]} 33. Rcc3 {[%emt 0:00:12]} Rab7 {[%emt 0:00:35]} 34. Rc4 {[%emt 0:00:08]} Ra7 {[%emt 0:00:20]} 35. Rcc3 {[%emt 0:00:33]} Rab7 {[%emt 0:00:06]} 36. Rc4 {[%emt 0:00:09]} 1/2-1/2

[Event "MCC Labor Day Schev 2024"]
[Site "New York"]
[Date "2024.08.30"]
[Round "2.4"]
[White "Mottola, Max"]
[Black "Colas, Joshua"]
[Result "0-1"]
[ECO "B41"]
[WhiteElo "2103"]
[BlackElo "2224"]
[Annotator "RC"]
[PlyCount "80"]
[EventDate "2024.08.28"]
[EventType "schev"]
[EventCountry "USA"]
[SourceTitle "playchess.com"]
[Source "ChessBase"]
[SourceQuality "1"]
[TimeControl "5400+30"]

1. e4 {[%emt 0:00:03]} c5 {[%emt 0:09:08]} 2. Nf3 {[%emt 0:00:14]} e6 {[%emt 0:00:04]} 3. d4 {[%emt 0:00:09]} cxd4 {[%emt 0:00:06]} 4. Nxd4 {[%emt 0:00:05]} a6 {[%emt 0:00:04]} 5. c4 {[%emt 0:00:12]} Nf6 {[%emt 0:00:38]} 6. Nc3 {[%emt 0:00:08]} Qc7 {[%emt 0:01:11]} 7. a3 {[%emt 0:00:09]} b6 {[%emt 0:00:35]} 8. f4 {[%emt 0:00:24]} d6 {[%emt 0:00:35]} 9. Bd3 {[%emt 0:06:16]} Bb7 {[%emt 0:00:25]} 10. f5 {[%emt 0:00:57]} Nc6 {[%emt 0:02:58]} 11. Be3 {[%emt 0:01:25]} exf5 {[%emt 0:07:50]} 12. Nxf5 {[%emt 0:03:37]} Ne5 {[%emt 0:00:24]} 13. Rc1 {[%emt 0:20:11]} g6 {[%emt 0:02:31]} 14. Nd5 {[%emt 0:03:51]} Bxd5 {[%emt 0:03:41]} 15. cxd5 {[%emt 0:00:07]} Qb7 {[%emt 0:00:06]} 16. Nd4 {[%emt 0:01:32]} Bg7 {[%emt 0:01:08]} 17. Nc6 {[%emt 0:10:47]} Nxd3+ {[%emt 0:03:54]} 18. Qxd3 {[%emt 0:00:57]} O-O {[%emt 0:00:07]} 19. Bd4 {[%emt 0:11:19]} Nxe4 {[%emt 0:03:18]} 20. Bxg7 {[%emt 0:01:28]} Kxg7 {[%emt 0:00:37]} 21. O-O {[%emt 0:03:47]} Rae8 {[%emt 0:01:08]} 22. Nd4 {[%emt 0:08:45]} Kg8 {[%emt 0:05:31]} 23. Rc6 {[%emt 0:02:06]} b5 {[%emt 0:00:40]} 24. Nf3 {[%emt 0:08:50]} Qa7+ {[%emt 0:13:27]} 25. Qd4 {[%emt 0:00:28]} Qxd4+ {[%emt 0:00:09]} 26. Nxd4 {[%emt 0:00:06]} Re5 {[%emt 0:00:05]} 27. Re1 {[%emt 0:02:53]} Rfe8 {[%emt 0:00:58]} 28. Rxa6 {[%emt 0:00:59]} Rxd5 {[%emt 0:00:08]} 29. Nf3 {[%emt 0:01:37]} g5 {[%emt 0:02:48]} 30. a4 {[%emt 0:03:38]} g4 {[%emt 0:02:25]} 31. Nh4 {[%emt 0:00:14]} Rh5 {[%emt 0:00:42]} 32. g3 {[%emt 0:00:30]} bxa4 {[%emt 0:00:44]} 33. Rxa4 {[%emt 0:00:22]} Rhe5 {[%emt 0:01:30]} 34. Rd4 {[%emt 0:04:14]} h5 {[%emt 0:00:34]} 35. Rf1 {[%emt 0:01:50]} R8e6 {[%emt 0:04:32]} 36. Rfd1 {[%emt 0:02:48]} Rb5 {[%emt 0:03:55]} 37. Re1 {[%emt 0:01:19]} d5 {[%emt 0:00:12]} 38. Nf5 {[%emt 0:00:40]} Ng5 {[%emt 0:00:29]} 39. Rxe6 {[%emt 0:00:31]} Nf3+ {[%emt 0:00:13]} 40. Kf1 {[%emt 0:00:27]} fxe6 {[%emt 0:00:06]} 0-1

[Event "MCC Labor Day Schev 2024"]
[Site "New York"]
[Date "2024.08.30"]
[Round "2.5"]
[White "Shangin, Lev"]
[Black "Martin Del Campo Cardenas, Roberto Abel"]
[Result "1-0"]
[ECO "A53"]
[WhiteElo "1974"]
[BlackElo "2216"]
[Annotator "RC"]
[PlyCount "63"]
[EventDate "2024.08.28"]
[EventType "schev"]
[EventCountry "USA"]
[SourceTitle "playchess.com"]
[Source "ChessBase"]
[SourceQuality "1"]
[TimeControl "5400+30"]

1. d4 Nf6 2. c4 d6 3. Nc3 Bf5 4. g3 c6 5. Bg2 e5 6. Nf3 Qc7 7. O-O Be7 8. Re1 h6 9. e4 Bg4 10. h3 Bxf3 11. Bxf3 O-O 12. Be3 a5 13. Bg2 Na6 14. f4 Nd7 15. d5 exf4 16. gxf4 Bf6 17. Bd4 Bxd4+ 18. Qxd4 Qb6 19. Qxb6 Nxb6 20. b3 Nb4 21. Re2 a4 22. Rb1 axb3 23. Rxb3 c5 24. a3 Nd3 25. Rxb6 Rxa3 26. Nb5 Rb3 27. Rxb7 Nxf4 28. Rf2 Nd3 29. Rd2 Ne5 30. Nxd6 Rc3 31. Rd1 Ra8 32. Nb5 1-0

[Event "MCC Labor Day Schev 2024"]
[Site "New York"]
[Date "2024.08.30"]
[Round "2.6"]
[White "Nasta, Kiren Vivek"]
[Black "Stern, Kevin B"]
[Result "1/2-1/2"]
[ECO "B77"]
[WhiteElo "2148"]
[BlackElo "1920"]
[Annotator "RC"]
[PlyCount "62"]
[EventDate "2024.08.28"]
[EventType "schev"]
[EventCountry "USA"]
[SourceTitle "playchess.com"]
[Source "ChessBase"]
[SourceQuality "1"]
[TimeControl "5400+30"]

1. e4 {[%emt 0:00:02]} c5 {[%emt 0:00:07]} 2. Nf3 {[%emt 0:00:11]} d6 {[%emt 0:00:15]} 3. d4 {[%emt 0:00:01]} cxd4 {[%emt 0:00:10]} 4. Nxd4 {[%emt 0:00:03]} Nf6 {[%emt 0:00:10]} 5. Nc3 {[%emt 0:00:01]} g6 {[%emt 0:00:07]} 6. Be3 {[%emt 0:00:03]} Bg7 {[%emt 0:00:05]} 7. f3 {[%emt 0:00:05]} O-O {[%emt 0:00:07]} 8. Qd2 {[%emt 0:00:02]} Nc6 {[%emt 0:00:06]} 9. Bc4 {[%emt 0:00:19]} Nxd4 {[%emt 0:00:06]} 10. Bxd4 {[%emt 0:00:06]} Be6 {[%emt 0:00:04]} 11. Bxe6 {[%emt 0:00:27]} fxe6 {[%emt 0:00:09]} 12. O-O-O {[%emt 0:00:43]} Qa5 {[%emt 0:00:09]} 13. Rhe1 {[%emt 0:00:15]} Nd7 {[%emt 0:00:21]} 14. Bxg7 {[%emt 0:00:06]} Kxg7 {[%emt 0:00:03]} 15. e5 {[%emt 0:00:07]} d5 {[%emt 0:00:04]} 16. Kb1 {[%emt 0:06:28]} Rac8 {[%emt 0:03:44]} 17. Ne2 {[%emt 0:01:27]} Qxd2 {[%emt 0:00:14]} 18. Rxd2 {[%emt 0:00:06]} Nb8 {[%emt 0:05:00]} 19. Nd4 {[%emt 0:10:59]} Kf7 {[%emt 0:00:07]} 20. f4 {[%emt 0:01:02]} Nc6 {[%emt 0:00:31]} 21. c3 {[%emt 0:03:17]} Nxd4 {[%emt 0:01:17]} 22. Rxd4 {[%emt 0:00:25]} b5 {[%emt 0:07:34]} 23. a4 {[%emt 0:02:14]} Rc4 {[%emt 0:06:33]} 24. Red1 {[%emt 0:03:46]} a6 {[%emt 0:02:52]} 25. axb5 {[%emt 0:01:01]} axb5 {[%emt 0:00:36]} 26. Kc2 {[%emt 0:08:04]} Rfc8 {[%emt 0:06:25]} 27. Rxc4 {[%emt 0:06:15]} bxc4 {[%emt 0:03:39]} 28. Ra1 {[%emt 0:00:40]} Rb8 {[%emt 0:00:24]} 29. Ra2 {[%emt 0:00:45]} Kg7 {[%emt 0:02:14]} 30. Kd2 {[%emt 0:00:32]} Kf7 {[%emt 0:00:58]} 31. Ke3 {[%emt 0:00:19]} h5 {[%emt 1:01:49]} 1/2-1/2

[Event "MCC Labor Day Schev 2024"]
[Site "New York"]
[Date "2024.08.30"]
[Round "2.7"]
[White "Sarkar, Justin"]
[Black "Hoffman, Luc"]
[Result "1/2-1/2"]
[ECO "D17"]
[WhiteElo "2276"]
[BlackElo "2067"]
[Annotator "RC"]
[PlyCount "40"]
[EventDate "2024.08.28"]
[EventType "schev"]
[EventCountry "USA"]
[SourceTitle "playchess.com"]
[Source "ChessBase"]
[SourceQuality "1"]
[TimeControl "5400+30"]

1. d4 {[%emt 0:00:15]} d5 {[%emt 0:00:32]} 2. c4 {[%emt 0:00:17]} c6 {[%emt 0:00:34]} 3. Nf3 {[%emt 0:00:48]} Nf6 {[%emt 0:00:13]} 4. Nc3 {[%emt 0:02:07]} dxc4 {[%emt 0:00:33]} 5. a4 {[%emt 0:00:29]} Bf5 {[%emt 0:00:06]} 6. Ne5 {[%emt 0:06:22]} e6 {[%emt 0:01:56]} 7. f3 {[%emt 0:00:10]} Bb4 {[%emt 0:00:20]} 8. e4 {[%emt 0:07:11]} Bxe4 {[%emt 0:02:03]} 9. fxe4 {[%emt 0:00:10]} Nxe4 {[%emt 0:00:04]} 10. Bd2 {[%emt 0:00:14]} Qxd4 {[%emt 0:00:19]} 11. Nxe4 {[%emt 0:00:05]} Qxe4+ {[%emt 0:00:07]} 12. Qe2 {[%emt 0:00:06]} Bxd2+ {[%emt 0:00:02]} 13. Kxd2 {[%emt 0:00:07]} Qd5+ {[%emt 0:00:02]} 14. Kc3 {[%emt 0:00:11]} O-O {[%emt 0:01:02]} 15. Qe3 {[%emt 0:10:57]} b5 {[%emt 0:09:57]} 16. axb5 {[%emt 0:02:42]} cxb5 {[%emt 0:00:43]} 17. Be2 {[%emt 0:00:05]} Nd7 {[%emt 0:01:13]} 18. Nxd7 {[%emt 0:03:25]} Qxd7 {[%emt 0:00:19]} 19. Bf3 {[%emt 0:00:08]} Rac8 {[%emt 0:00:00]} 20. Rxa7 {[%emt 0:00:25]} Rc7 {[%emt 0:00:01]} 1/2-1/2

[Event "MCC Labor Day Schev 2024"]
[Site "New York"]
[Date "2024.08.30"]
[Round "2.8"]
[White "Patel, Maahir M"]
[Black "Khodzhamkuliev, Bahadur"]
[Result "1-0"]
[ECO "B00"]
[WhiteElo "2005"]
[BlackElo "2187"]
[Annotator "RC"]
[PlyCount "87"]
[EventDate "2024.08.28"]
[EventType "schev"]
[EventCountry "USA"]
[SourceTitle "playchess.com"]
[Source "ChessBase"]
[SourceQuality "1"]
[TimeControl "5400+30"]

1. e4 {[%emt 0:00:09]} d6 {[%emt 0:00:08]} 2. d4 {[%emt 0:00:06]} Nc6 {[%emt 0:00:12]} 3. d5 {[%emt 0:00:07]} Nb8 {[%emt 0:00:06]} 4. Bd3 {[%emt 0:00:12]} Nf6 {[%emt 0:00:07]} 5. c4 {[%emt 0:00:05]} g6 {[%emt 0:00:18]} 6. Nc3 {[%emt 0:00:18]} Bg7 {[%emt 0:00:08]} 7. Nge2 {[%emt 0:00:06]} c6 {[%emt 0:00:18]} 8. h3 {[%emt 0:00:50]} O-O {[%emt 0:00:17]} 9. O-O {[%emt 0:00:10]} a6 {[%emt 0:02:15]} 10. a4 {[%emt 0:01:19]} Nbd7 {[%emt 0:00:40]} 11. Be3 {[%emt 0:03:21]} Ne5 {[%emt 0:01:33]} 12. f4 {[%emt 0:01:50]} Nxd3 {[%emt 0:00:13]} 13. Qxd3 {[%emt 0:00:08]} Nd7 {[%emt 0:03:10]} 14. Bd4 {[%emt 0:07:12]} Nc5 {[%emt 0:01:28]} 15. Qe3 {[%emt 0:13:38]} Qb6 {[%emt 0:03:45]} 16. Bxg7 {[%emt 0:05:41]} Kxg7 {[%emt 0:00:10]} 17. Qd4+ {[%emt 0:03:25]} Kg8 {[%emt 0:01:50]} 18. a5 {[%emt 0:17:20]} Qc7 {[%emt 1:22:52]} 19. Ra3 {[%emt 0:01:53]} Nd7 {[%emt 0:00:00]} 20. Qe3 {[%emt 0:02:16]} Rb8 {[%emt 0:00:00]} 21. b4 {[%emt 0:03:36]} c5 {[%emt 0:00:00]} 22. b5 {[%emt 0:03:14]} b6 {[%emt 0:00:00]} 23. Rfa1 {[%emt 0:01:25]} bxa5 {[%emt 0:00:00]} 24. Rxa5 {[%emt 0:00:39]} Nb6 {[%emt 0:00:00]} 25. Qd3 {[%emt 0:00:50]} f5 {[%emt 0:00:00]} 26. bxa6 {[%emt 0:02:45]} fxe4 {[%emt 0:00:00]} 27. Nxe4 {[%emt 0:00:44]} Bf5 {[%emt 0:00:00]} 28. g4 {[%emt 0:01:44]} Bd7 {[%emt 0:00:00]} 29. Ng5 {[%emt 0:02:39]} Nc8 {[%emt 0:00:00]} 30. Qe4 {[%emt 0:02:38]} Qb6 {[%emt 0:00:00]} 31. Ne6 {[%emt 0:02:13]} Rf6 {[%emt 0:00:00]} 32. Nc3 {[%emt 0:02:58]} Qb2 {[%emt 0:00:00]} 33. a7 {[%emt 0:04:09]} Nxa7 {[%emt 0:00:00]} 34. Rb1 {[%emt 0:00:48]} Qxc3 {[%emt 0:00:00]} 35. Rxb8+ {[%emt 0:00:09]} Nc8 {[%emt 0:00:00]} 36. Raa8 {[%emt 0:00:36]} Qc1+ {[%emt 0:00:00]} 37. Kg2 {[%emt 0:00:18]} Bxe6 {[%emt 0:00:00]} 38. dxe6 {[%emt 0:00:40]} Rxf4 {[%emt 0:00:00]} 39. Rxc8+ {[%emt 0:00:06]} Kg7 {[%emt 0:00:00]} 40. Qe2 {[%emt 0:01:41]} Rxc4 {[%emt 0:00:00]} 41. Ra2 {[%emt 0:04:41]} h5 {[%emt 0:00:00]} 42. Re8 {[%emt 0:02:09]} hxg4 {[%emt 0:00:00]} 43. Rxe7+ {[%emt 0:00:17]} Kh6 {[%emt 0:00:00]} 44. Qd2+ {[%emt 0:00:39]} 1-0

[Event "MCC Labor Day Schev 2024"]
[Site "New York"]
[Date "2024.08.30"]
[Round "2.9"]
[White "Zaderman, Vitaly"]
[Black "Zhao, Alex"]
[Result "0-1"]
[ECO "A41"]
[WhiteElo "2093"]
[BlackElo "2043"]
[Annotator "RC"]
[PlyCount "88"]
[EventDate "2024.08.28"]
[EventType "schev"]
[EventCountry "USA"]
[SourceTitle "playchess.com"]
[Source "ChessBase"]
[SourceQuality "1"]
[TimeControl "5400+30"]

1. d4 {[%emt 0:04:08]} d6 {[%emt 0:00:09]} 2. c4 {[%emt 0:00:05]} e5 {[%emt 0:00:06]} 3. dxe5 {[%emt 0:03:53]} dxe5 {[%emt 0:00:06]} 4. Qxd8+ {[%emt 1:24:24]} Kxd8 {[%emt 0:00:09]} 5. Nc3 {[%emt 0:00:00]} Be6 {[%emt 0:01:33]} 6. b3 {[%emt 0:00:00]} Nd7 {[%emt 0:03:09]} 7. Nf3 {[%emt 0:00:00]} f6 {[%emt 1:28:48]} 8. g3 {[%emt 0:00:00]} c6 {[%emt 0:00:00]} 9. Bg2 {[%emt 0:00:00]} Kc7 {[%emt 0:00:00]} 10. Bb2 {[%emt 0:00:00]} a5 {[%emt 0:00:00]} 11. O-O {[%emt 0:00:00]} Nh6 {[%emt 0:00:00]} 12. Rac1 {[%emt 0:00:00]} Nc5 {[%emt 0:00:00]} 13. Rfd1 {[%emt 0:00:00]} Nf7 {[%emt 0:00:00]} 14. Ne1 {[%emt 0:00:00]} Rd8 {[%emt 0:00:00]} 15. Rxd8 {[%emt 0:00:00]} Nxd8 {[%emt 0:00:00]} 16. Ne4 {[%emt 0:00:00]} Bf5 {[%emt 0:00:00]} 17. Nxc5 {[%emt 0:00:00]} Bxc5 {[%emt 0:00:00]} 18. e3 {[%emt 0:00:00]} Ne6 {[%emt 0:00:00]} 19. Kf1 {[%emt 0:00:00]} Rd8 {[%emt 0:00:00]} 20. Ke2 {[%emt 0:00:00]} Bb4 {[%emt 0:00:00]} 21. Bc3 {[%emt 0:00:00]} Nc5 {[%emt 0:00:00]} 22. f3 {[%emt 0:00:00]} Bxc3 {[%emt 0:00:00]} 23. Rxc3 {[%emt 0:00:00]} Bb1 {[%emt 0:00:00]} 24. a3 {[%emt 0:00:00]} Ba2 {[%emt 0:00:00]} 25. b4 {[%emt 0:00:00]} axb4 {[%emt 0:00:00]} 26. axb4 {[%emt 0:00:00]} Na4 {[%emt 0:00:00]} 27. Rc1 {[%emt 0:00:00]} Nb2 {[%emt 0:00:00]} 28. c5 {[%emt 0:06:53]} Bc4+ {[%emt 0:00:00]} 29. Kf2 {[%emt 0:00:16]} Nd1+ {[%emt 0:00:00]} 30. Kg1 {[%emt 0:00:09]} Nxe3 {[%emt 0:00:00]} 31. Rc3 {[%emt 0:00:39]} Nxg2 {[%emt 0:00:00]} 32. Nxg2 {[%emt 0:00:16]} Rd1+ {[%emt 0:00:00]} 33. Kf2 {[%emt 0:00:50]} Rd2+ {[%emt 0:00:00]} 34. Kg1 {[%emt 0:00:31]} Be6 {[%emt 0:00:00]} 35. f4 {[%emt 0:02:56]} Bd5 {[%emt 0:01:27]} 36. Ne3 {[%emt 0:00:22]} exf4 {[%emt 0:02:19]} 37. gxf4 {[%emt 0:00:51]} Rd4 {[%emt 0:00:55]} 38. Nxd5+ {[%emt 0:00:54]} cxd5 {[%emt 0:00:38]} 39. Rg3 {[%emt 0:00:55]} Rxb4 {[%emt 0:02:20]} 40. Rxg7+ {[%emt 0:00:22]} Kc6 {[%emt 0:08:51]} 41. Rxh7 {[%emt 0:00:20]} Rxf4 {[%emt 0:00:00]} 42. h4 {[%emt 0:00:15]} d4 {[%emt 0:00:00]} 43. h5 {[%emt 0:00:37]} d3 {[%emt 0:00:00]} 44. Rh8 {[%emt 0:00:11]} Rd4 {[%emt 0:00:00]} 0-1

[Event "MCC Labor Day Schev 2024"]
[Site "New York"]
[Date "2024.08.31"]
[Round "3.1"]
[White "Rohde, Michael"]
[Black "Shangin, Lev"]
[Result "1-0"]
[ECO "D38"]
[WhiteElo "2280"]
[BlackElo "1974"]
[Annotator "RC"]
[PlyCount "55"]
[EventDate "2024.08.28"]
[EventType "schev"]
[EventCountry "USA"]
[SourceTitle "playchess.com"]
[Source "ChessBase"]
[SourceQuality "1"]
[TimeControl "5400+30"]

1. Nf3 {[%emt 0:01:16]} Nf6 {[%emt 0:00:26]} 2. c4 {[%emt 0:00:04]} e6 {[%emt 0:00:45]} 3. Nc3 {[%emt 0:00:18]} d5 {[%emt 0:00:51]} 4. d4 {[%emt 0:00:08]} Bb4 {[%emt 0:00:54]} 5. e3 {[%emt 0:00:35]} Bxc3+ {[%emt 0:01:16]} 6. bxc3 {[%emt 0:00:08]} c5 {[%emt 0:01:32]} 7. Bd3 {[%emt 0:02:07]} Qc7 {[%emt 0:02:12]} 8. cxd5 {[%emt 0:04:56]} exd5 {[%emt 0:02:59]} 9. O-O {[%emt 0:02:11]} c4 {[%emt 0:01:51]} 10. Bb1 {[%emt 0:05:16]} O-O {[%emt 0:02:44]} 11. Ne5 {[%emt 0:06:10]} Ne4 {[%emt 0:09:29]} 12. Ba3 {[%emt 0:00:58]} Rd8 {[%emt 0:05:19]} 13. Qh5 {[%emt 0:06:38]} Nc6 {[%emt 0:12:00]} 14. Nxc6 {[%emt 0:17:17]} Qxc6 {[%emt 0:02:59]} 15. f3 {[%emt 0:03:08]} Nf6 {[%emt 0:00:15]} 16. Qh4 {[%emt 0:02:17]} Re8 {[%emt 0:01:57]} 17. Re1 {[%emt 0:03:17]} b6 {[%emt 0:04:25]} 18. Bc2 {[%emt 0:05:48]} Bb7 {[%emt 0:05:07]} 19. Re2 {[%emt 0:01:21]} g6 {[%emt 0:09:14]} 20. Rae1 {[%emt 0:01:03]} Re6 {[%emt 0:01:14]} 21. e4 {[%emt 0:02:05]} Rae8 {[%emt 0:01:21]} 22. e5 {[%emt 0:00:51]} Nh5 {[%emt 0:01:58]} 23. f4 {[%emt 0:00:20]} Ng7 {[%emt 0:00:35]} 24. g4 {[%emt 0:02:11]} Bc8 {[%emt 0:01:09]} 25. Rg2 {[%emt 0:08:04]} Qd7 {[%emt 0:02:36]} 26. f5 {[%emt 0:00:56]} Rc6 {[%emt 0:00:10]} 27. f6 {[%emt 0:01:13]} Ne6 {[%emt 0:00:02]} 28. Qh6 {[%emt 0:02:00]} 1-0

[Event "MCC Labor Day Schev 2024"]
[Site "New York"]
[Date "2024.08.31"]
[Round "3.2"]
[White "Sloan, Jed"]
[Black "Almeida Saenz, Alfonso"]
[Result "0-1"]
[ECO "B30"]
[WhiteElo "2039"]
[BlackElo "2202"]
[Annotator "RC"]
[PlyCount "82"]
[EventDate "2024.08.28"]
[EventType "schev"]
[EventCountry "USA"]
[SourceTitle "playchess.com"]
[Source "ChessBase"]
[SourceQuality "1"]
[TimeControl "5400+30"]

1. e4 c5 2. Nf3 Nc6 3. Bb5 Na5 4. O-O a6 5. Be2 d6 6. c4 Nf6 7. Nc3 e5 8. Ne1 Be6 9. d3 Rb8 10. f4 Be7 11. f5 Bd7 12. Nc2 Nc6 13. Qe1 Nd4 14. Bd1 b5 15. Qg3 bxc4 16. dxc4 Bc6 17. Nd5 Bxd5 18. cxd5 Kf8 19. Qd3 Qb6 20. Nxd4 exd4 21. Bb3 Nd7 22. Bf4 Bf6 23. Ba4 Ne5 24. Bxe5 Bxe5 25. b4 c4 26. Qxc4 d3+ 27. Kh1 Bxa1 28. Rxa1 Qxb4 29. Qc7 Qb1+ 30. Bd1 Qb6 31. Qc3 Ke7 32. Bb3 f6 33. Qxd3 Rhc8 34. Qh3 Qd4 35. Rd1 Qe5 36. Qxh7 Kf7 37. Ba4 Rh8 38. Qg6+ Kf8 39. h3 Qxe4 40. Bd7 Rxh3+ 41. Kg1 Qe3+ 0-1